bitfinex-derivatives/quotes_ETHF0:USTF0_20250804
["timestamp","ask_amount","ask_price","bid_price","bid_amount"]
[1754289689255,1.1046,3529.8,3529.7,19.534]
[1754289689450,1.92412456,3529.8,3529.7,19.9513]
[1754289689858,2.7922,3529.8,3529.7,19.9513]
[1754289690159,2.7922,3529.8,3529.7,19.534]
[1754289690357,2.7922,3529.8,3529.7,19.9513]
[1754289690860,2.7922,3529.8,3529.7,20.5242]
[1754289694164,2.7922,3530.2,3530.1,1.5567]
[1754289694362,0.3038,3530.0,3529.9,0.56653]
[1754289694668,1.1046,3530.0,3529.9,20.08753]
[1754289694866,3.6110861,3530.0,3529.9,20.08753]
[1754289695059,0.8008,3529.5,3529.4,0.9902]
[1754289695262,2.7922,3529.5,3529.4,20.5102]
[1754289695957,2.7922,3529.5,3529.4,19.034]
[1754289696163,2.7922,3529.5,3529.4,13.7229]
[1754289696362,0.56662,3529.4,3528.9,1.1396]
[1754289696562,0.56665,3529.2,3528.9,1.6798]
[1754289696758,0.56665,3529.2,3529.0,0.5729]
[1754289697062,3.77439,3529.6,3529.5,2.7956]
[1754289697462,3.2078,3529.6,3529.5,2.7956]
[1754289697658,3.2078,3529.6,3529.4,0.56661]
[1754289697659,3.2078,3530.0,3529.9,0.4173]
[1754289697862,3.2078,3530.0,3529.9,2.7956]
[1754289698062,0.56649,3530.3,3530.0,1.1131]
[1754289698264,0.81833363,3530.2,3530.1,0.5729]
[1754289698761,0.81833363,3530.3,3530.1,1.1131]
[1754289699065,0.81833363,3530.3,3530.2,2.3113]
[1754289699764,0.81833363,3530.3,3530.2,2.7956]
[1754289700262,1.01156571,3530.9,3530.2,1.1801]
[1754289700467,1.01156571,3530.9,3530.8,2.7956]
[1754289700666,2.16873562,3530.9,3530.8,2.7956]
[1754289700869,2.73511562,3530.9,3530.8,2.7956]
[1754289701071,2.73511562,3530.9,3530.8,0.5729]
[1754289702270,2.16957211,3530.9,3530.8,0.5729]
[1754289702470,1.15716991,3530.9,3530.8,1.2848]
[1754289702665,2.16957223,3530.9,3530.8,2.7956]
[1754289702973,1.15716991,3530.9,3530.8,2.7956]
[1754289703674,1.15716991,3530.9,3530.8,2.1703]
[1754289703970,1.34556991,3530.9,3530.8,2.1703]
[1754289704265,2.86415889,3530.9,3530.8,2.803]
[1754289704569,2.19905889,3530.9,3530.8,2.8155]
[1754289704765,2.82945889,3530.9,3530.8,2.8155]
[1754289704969,2.90075889,3530.9,3530.8,2.8155]
[1754289705267,2.9007859,3530.9,3530.8,2.8155]
[1754289705670,1.38219692,3530.9,3530.8,2.8155]
[1754289706367,0.16969692,3530.9,3530.8,2.8155]
[1754289706568,0.57759692,3530.9,3530.8,2.8155]
[1754289706764,1.35249692,3530.9,3530.8,2.8155]
[1754289706969,1.39639692,3530.9,3530.8,2.8155]
[1754289707768,1.39639692,3530.9,3530.8,0.9902]
[1754289708163,1.39639692,3530.9,3530.8,2.2131]
[1754289708468,1.39639692,3530.9,3530.8,2.8458]
[1754289708672,0.16969692,3530.9,3530.8,2.8458]
[1754289708865,1.01267787,3531.3,3531.2,2.8588]
[1754289709172,1.59037747,3531.3,3531.2,2.8588]
[1754289709668,2.40917747,3531.3,3531.2,1.0032]
[1754289709866,1.3964996,3531.3,3531.2,0.601]
[1754289710068,1.4696996,3531.3,3531.2,0.601]
[1754289710362,2.40960391,3531.3,3531.2,1.3187]
[1754289710566,2.40960391,3531.3,3531.2,2.2261]
[1754289710760,2.40960391,3531.3,3531.2,0.601]
[1754289710962,2.40957193,3531.3,3531.2,0.601]
[1754289711157,2.40957193,3531.3,3531.2,1.0032]
[1754289711365,2.40957193,3531.3,3531.2,1.7293]
[1754289711560,2.40957193,3531.3,3531.2,2.8588]
[1754289711768,2.23977233,3531.3,3531.2,2.8588]
[1754289711971,1.42097233,3531.3,3531.2,2.8588]
[1754289712169,1.01307233,3531.4,3531.3,0.56632]
[1754289712468,0.81216234,3531.4,3531.3,3.42512]
[1754289712863,1.82523467,3531.4,3531.3,2.8588]
[1754289713066,1.85046234,3531.4,3531.3,2.8588]
[1754289713266,1.85046234,3531.4,3531.3,3.42512]
[1754289713571,0.81216234,3531.5,3531.3,3.42512]
[1754289713766,0.81216234,3531.5,3531.4,1.7305]
[1754289713974,1.22006234,3531.5,3531.4,2.8588]
[1754289714567,1.0657,3531.5,3531.4,2.8588]
[1754289714772,1.99496234,3531.5,3531.4,2.8588]
[1754289715078,2.03886234,3531.5,3531.4,2.8588]
[1754289715462,0.81216234,3531.5,3531.4,3.4251]
[1754289715667,0.81216234,3531.5,3530.6,3.2078]
[1754289715668,1.46996234,3531.7,3531.6,1.1283]
[1754289715870,1.99496234,3531.7,3531.6,2.8588]
[1754289716070,2.03886234,3531.7,3531.6,2.8588]
[1754289716675,1.38106234,3531.7,3531.6,1.7293]
[1754289716974,2.03886234,3531.7,3531.6,1.7293]
[1754289717174,1.793,3531.4,3531.3,2.8588]
[1754289717475,2.03886234,3531.4,3531.3,2.8588]
[1754289717677,1.2267,3531.4,3531.3,2.8588]
[1754289718176,1.1828,3531.4,3530.6,22.6848]
[1754289718373,0.4079,3531.4,3531.3,2.8588]
[1754289718678,3.2078,3531.5,3531.4,3.4251]
[1754289719877,1.3107,3532.0,3531.9,3.42502]
[1754289720174,2.11816225,3532.0,3531.9,3.42502]
[1754289720672,1.80746225,3532.0,3531.9,3.42502]
[1754289720871,1.0,3532.0,3531.9,3.42502]
[1754289721981,2.6375,3532.0,3531.9,3.42502]
[1754289722172,3.2679,3532.0,3531.9,3.42502]
[1754289726180,1.0,3532.0,3531.9,3.42502]
[1754289727087,3.2679,3532.0,3531.9,6.63282]
[1754289727384,3.2679,3532.0,3531.9,6.0666]
[1754289727884,2.6375,3532.0,3531.9,6.0666]
[1754289728072,3.2679,3532.0,3531.9,6.0666]
[1754289728278,2.1536,3532.0,3531.9,6.0666]
[1754289728481,1.0,3532.0,3531.9,6.0666]
[1754289728677,1.0,3532.0,3531.9,8.71155553]
[1754289730582,1.8439,3532.7,3532.6,3.40021]
[1754289730887,2.2518,3532.7,3532.6,3.40021]
[1754289731090,1.8439,3533.0,3532.9,2.35686]
[1754289731289,2.03609252,3533.0,3532.9,3.40016]
[1754289731485,2.8822,3533.0,3532.9,3.40016]
[1754289732185,1.6375,3533.3,3533.2,2.7991]
[1754289732383,2.2518,3533.3,3533.2,2.7991]
[1754289732683,2.2518,3533.3,3533.2,3.4001]
[1754289732884,3.2078,3533.4,3533.2,3.4001]
[1754289733189,3.2078,3533.8,3533.7,2.61243]
[1754289733491,4.4374,3533.8,3533.7,3.40003]
[1754289733680,4.4374,3533.8,3533.7,2.8341]
[1754289733990,3.2078,3533.8,3533.7,2.8341]
[1754289735487,4.4283,3533.8,3533.7,2.8341]
[1754289735783,2.9522,3533.7,3533.6,1.5015]
[1754289735989,2.9522,3533.7,3533.6,0.8555]
[1754289736685,1.5406,3533.6,3533.5,0.4383]
[1754289736887,1.2029,3533.6,3533.5,1.0505]
[1754289737092,1.2029,3533.6,3533.5,2.4203]
[1754289737288,1.2029,3533.6,3533.5,2.8872]
[1754289737493,2.9522,3533.6,3533.5,2.8872]
[1754289737988,4.4107,3533.8,3533.7,2.8872]
[1754289738192,6.16,3533.8,3533.7,2.8872]
[1754289739185,3.77372,3533.8,3533.4,0.56598]
[1754289739391,0.758,3533.8,3533.7,4.93582]
[1754289740089,0.758,3533.8,3533.7,6.66092]
[1754289740489,1.2205,3533.8,3533.7,6.66092]
[1754289743592,1.2205,3533.8,3533.7,6.095]
[1754289743993,1.6654,3533.8,3533.7,6.095]
[1754289744493,2.9522,3534.3,3534.2,3.45304]
[1754289744687,0.3096,3534.3,3534.2,3.45304]
[1754289744892,2.2951,3534.6,3534.5,1.7279]
[1754289745088,1.6654,3534.6,3534.5,3.453]
[1754289745288,2.47058417,3534.6,3534.5,6.6608]
[1754289745487,0.3096,3534.6,3534.5,6.6608]
[1754289745694,3.75741123,3534.8,3534.7,3.14637]
[1754289745897,3.75741123,3534.8,3534.7,2.8872]
[1754289746783,2.00811123,3534.8,3534.5,3.2078]
[1754289747094,2.9522,3534.2,3534.1,6.66087]
[1754289747599,1.8776,3534.2,3534.1,6.66087]
[1754289747892,2.9522,3534.2,3534.1,6.66087]
[1754289748089,2.9522,3534.2,3534.1,6.095]
[1754289748290,2.9522,3534.2,3534.1,4.0633]
[1754289748498,2.9522,3534.2,3534.1,3.2078]
[1754289748794,1.2205,3534.2,3534.1,5.6281]
[1754289749088,2.9522,3534.2,3534.1,6.095]
[1754289749292,2.9522,3534.2,3533.7,19.494]
[1754289749293,1.2029,3533.8,3533.7,3.2078]
[1754289749493,2.9522,3533.8,3533.7,3.2078]
[1754289749797,3.75765332,3533.8,3533.7,3.2078]
[1754289750298,3.75765332,3533.8,3533.7,5.7884]
[1754289750490,3.75765332,3533.8,3533.7,6.095]
[1754289750795,3.75765332,3533.8,3533.7,5.3215]
[1754289750993,0.56593,3533.7,3533.3,0.56599]
[1754289751201,2.9522,3533.4,3533.3,2.1137]
[1754289751391,2.9522,3533.4,3533.3,2.8872]
[1754289752088,2.3225,3533.4,3533.3,2.8872]
[1754289752284,2.9522,3533.4,3533.3,1.5015]
[1754289753395,1.7689,3533.4,3533.1,3.2078]
[1754289753594,1.2029,3533.2,3533.1,5.3215]
[1754289753795,2.9522,3533.2,3533.1,6.095]
[1754289754092,0.566,3533.4,3532.0,0.5662]
[1754289754093,1.22314,3533.0,3532.0,0.5662]
[1754289754291,0.6297,3532.8,3532.5,0.56613]
[1754289754593,0.4625,3532.9,3532.8,1.0791]
[1754289754800,1.6654,3532.9,3532.8,2.8872]
[1754289755092,2.5038,3532.8,3532.7,3.2078]
[1754289755288,2.9522,3532.8,3532.7,4.9821]
[1754289755496,3.75879119,3532.8,3532.7,5.6281]
[1754289755690,3.75879119,3532.8,3532.7,6.095]
[1754289755887,2.47199119,3532.8,3532.7,6.095]
[1754289756095,2.00949119,3532.8,3532.7,6.095]
[1754289756892,1.56459119,3532.8,3532.7,6.095]
[1754289757091,1.56459119,3533.0,3532.9,1.1621]
[1754289757294,1.01307233,3533.4,3533.3,0.566]
[1754289757500,0.80720379,3533.4,3533.3,2.8872]
[1754289757692,1.56520379,3533.4,3533.3,2.8872]
[1754289757891,3.12970379,3533.4,3533.3,2.8872]
[1754289758296,3.75940379,3533.4,3533.3,2.8872]
[1754289758898,3.75940379,3533.4,3533.3,2.4203]
[1754289759297,3.75940379,3533.4,3533.3,2.8872]
[1754289762798,0.80720379,3533.4,3533.3,6.095]
[1754289764102,1.01307233,3533.9,3533.3,6.095]
[1754289764406,1.77137233,3534.0,3533.9,2.8838]
[1754289764601,2.58069461,3534.0,3533.9,2.8838]
[1754289765002,1.82239461,3534.0,3533.9,2.8838]
[1754289765204,0.80932228,3534.0,3533.9,2.8838]
[1754289765703,2.44982228,3534.0,3533.9,0.7415]
[1754289765900,2.9549,3533.9,3533.8,2.04912]
[1754289766101,3.76422228,3533.9,3533.8,2.04912]
[1754289766300,3.76422228,3533.9,3533.8,3.44972]
[1754289766497,3.10672228,3533.9,3533.8,3.44972]
[1754289766701,3.76422228,3533.9,3533.8,3.44972]
[1754289767406,2.9549,3533.8,3533.7,5.25692]
[1754289767602,2.9549,3533.8,3533.7,4.691]
[1754289767801,1.1863,3533.8,3533.7,4.60872]
[1754289768010,2.9549,3533.8,3533.7,6.19812]
[1754289768206,2.9549,3533.8,3533.7,6.65752]
[1754289768703,1.6405,3533.8,3533.7,6.65752]
[1754289768907,1.8694,3534.3,3534.2,1.70684]
[1754289769111,1.56779349,3534.3,3534.2,1.70684]
[1754289769500,0.80949349,3534.3,3534.2,3.44964]
[1754289769706,0.80949349,3534.3,3534.2,6.65744]
[1754289769906,1.99575262,3534.7,3534.6,1.70678]
[1754289770205,3.76435262,3534.7,3534.6,2.8838]
[1754289770406,3.10685262,3534.7,3534.6,2.8838]
[1754289770709,2.44995262,3534.7,3534.6,2.8838]
[1754289771103,0.80940576,3534.7,3534.6,3.2078]
[1754289771410,2.02190576,3534.9,3534.8,1.70676]
[1754289771709,0.80940576,3534.9,3534.8,3.44956]
[1754289773299,1.0,3535.0,3534.8,3.44956]
[1754289773300,1.0,3535.0,3534.8,1.70676]
[1754289773596,1.80940576,3535.0,3534.8,1.70676]
[1754289773800,1.01307233,3535.7,3535.6,0.7415]
[1754289774004,4.9470939,3535.7,3535.6,1.7892]
[1754289774305,3.76411032,3535.7,3535.6,0.7415]
[1754289774508,3.76411032,3535.7,3535.6,0.4355]
[1754289774911,1.7686,3535.6,3535.4,1.66025]
[1754289775208,3.76411032,3535.5,3535.4,2.80125]
[1754289775804,3.76411032,3535.5,3535.4,2.2356]
[1754289776106,0.80921032,3535.5,3535.4,2.2356]
[1754289776311,1.8438,3535.7,3535.6,2.2356]
[1754289776505,2.65301032,3535.7,3535.6,2.8838]
[1754289776911,2.9549,3535.4,3535.3,3.2078]
[1754289777204,3.76411032,3535.4,3535.3,3.2078]
[1754289777406,0.3296,3536.2,3536.1,0.56555]
[1754289777611,2.9549,3536.2,3536.1,3.44935]
[1754289778000,2.298,3536.2,3536.1,3.44935]
[1754289778205,0.428,3536.2,3536.1,3.44935]
[1754289778406,2.9549,3536.5,3536.4,3.4493]
[1754289778608,2.9549,3536.5,3536.4,2.2356]
[1754289778807,1.1863,3536.1,3536.0,1.8361]
[1754289779008,1.1863,3536.1,3536.0,0.4355]
[1754289779009,2.9549,3536.1,3536.0,0.4355]
[1754289779304,0.56551,3536.4,3536.3,0.56552]
[1754289779305,1.1863,3536.4,3536.3,0.56552]
[1754289779504,0.56542,3536.9,3536.2,3.2078]
[1754289779713,2.9549,3536.3,3536.2,3.44933]
[1754289780102,0.7583,3536.3,3536.2,3.44933]
[1754289780412,2.9549,3536.6,3536.5,1.141]
[1754289780609,2.9549,3536.6,3536.5,1.8361]
[1754289780903,2.9549,3536.6,3536.5,0.7415]
[1754289781110,2.9549,3536.2,3536.1,3.2078]
[1754289781306,0.7583,3535.8,3535.7,3.2078]
[1754289781510,1.6405,3535.6,3535.5,1.00113]
[1754289781712,2.9549,3535.6,3535.5,0.56563]
[1754289782307,0.4287,3535.4,3535.2,3.2078]
[1754289782505,2.9549,3535.3,3535.2,3.2078]
[1754289783208,2.9549,3535.3,3535.2,6.0916]
[1754289785211,2.9549,3535.3,3535.2,3.2078]
[1754289785502,1.1863,3535.3,3534.9,1.66033]
[1754289785708,1.1863,3535.0,3534.9,2.40183]
[1754289785909,2.9549,3535.0,3534.9,2.80133]
[1754289786710,2.9549,3535.0,3534.9,3.44953]
[1754289787218,2.9549,3535.0,3534.9,2.2356]
[1754289787416,2.9549,3535.0,3534.9,1.7762]
[1754289787712,2.9549,3535.0,3534.9,0.3995]
[1754289787917,2.9549,3535.0,3532.6,3.55953836]
[1754289787918,1.1863,3534.6,3534.5,2.8014]
[1754289788213,2.9549,3534.6,3534.5,2.2356]
[1754289788512,1.1863,3534.6,3534.5,2.2356]
[1754289788715,1.1863,3534.6,3534.5,2.8838]
[1754289789115,1.8438,3534.6,3534.5,2.8838]
[1754289789316,2.298,3534.6,3534.5,2.8838]
[1754289790215,2.9549,3534.6,3534.5,2.8838]
[1754289790518,1.1117,3535.0,3534.5,2.8838]
[1754289790718,1.8438,3534.6,3534.5,2.8838]
[1754289790909,2.298,3534.6,3534.5,2.8838]
[1754289791221,2.9549,3534.6,3534.5,2.2356]
[1754289791419,1.1117,3534.5,3534.4,3.2078]
[1754289791718,1.6405,3534.5,3534.4,3.2078]
[1754289791916,2.9549,3534.5,3534.4,3.2078]
[1754289792517,3.52071,3534.5,3534.4,3.2078]
[1754289792718,2.9549,3534.5,3534.4,5.4434]
[1754289793817,3.52071,3534.5,3534.4,3.2078]
[1754289794120,1.75211,3534.5,3534.2,0.56585]
[1754289794322,1.1886,3534.3,3534.1,0.56586]
[1754289794514,2.8953,3534.2,3534.1,3.46896]
[1754289794723,2.8953,3534.5,3534.4,3.46891]
[1754289795613,2.8953,3534.5,3534.4,2.9031]
[1754289795812,2.8953,3534.5,3534.4,2.2927]
[1754289796022,0.5658,3534.6,3533.9,6.1109]
[1754289796023,2.8953,3534.0,3533.9,6.1109]
[1754289797026,2.8953,3534.0,3533.9,3.2078]
[1754289797230,2.8953,3534.0,3533.9,5.5005]
[1754289797520,2.8953,3534.0,3533.9,3.2078]
[1754289797821,3.46119,3534.0,3533.9,3.6395]
[1754289798023,2.8953,3534.0,3533.9,3.9696]
[1754289798217,2.8953,3534.0,3533.9,4.6206]
[1754289798417,1.7545,3534.0,3533.6,19.523]
[1754289798617,2.8953,3533.7,3533.6,20.2848]
[1754289798820,2.8953,3533.7,3533.6,21.8157]
[1754289799424,2.2806,3533.7,3533.6,22.4261]
[1754289799618,2.2806,3533.7,3533.6,22.99204]
[1754289799825,1.8229,3533.7,3533.6,22.99204]
[1754289801826,2.8953,3533.7,3533.6,22.99204]
[1754289802126,2.8953,3533.7,3533.6,22.38164]
[1754289802328,2.8953,3533.7,3533.6,22.99204]
[1754289802625,3.46123,3533.7,3533.6,22.4261]
[1754289802924,2.2806,3533.7,3533.6,19.523]
[1754289803126,2.8953,3533.7,3533.6,19.523]
[1754289803327,2.8953,3533.7,3533.6,20.2848]
[1754289803626,2.8953,3533.7,3533.6,21.8157]
[1754289803826,1.8423,3533.7,3533.6,22.4261]
[1754289804129,3.9581,3534.6,3534.5,1.75771]
[1754289804419,6.1031,3534.6,3534.5,3.46891]
[1754289805028,5.4884,3534.6,3534.5,3.46891]
[1754289805225,5.0307,3534.6,3534.5,3.46891]
[1754289805423,1.7067,3534.5,3534.3,0.56583]
[1754289805621,3.2078,3534.6,3534.5,1.1919]
[1754289805820,4.3964,3534.6,3534.5,2.2927]
[1754289806127,6.1031,3534.6,3534.5,2.9031]
[1754289806728,1.1886,3533.8,3533.2,3.2078]
[1754289807028,2.8203,3533.4,3533.3,20.085]
[1754289807228,2.2056,3533.4,3533.3,22.9881]
[1754289807423,1.365,3533.6,3533.5,1.75787]
[1754289807622,0.7503,3533.6,3533.5,3.46907]
[1754289808119,1.8227,3533.6,3533.5,3.46907]
[1754289809326,1.208,3533.6,3533.5,3.46907]
[1754289811823,0.7503,3533.6,3533.5,3.46907]
[1754289812426,1.8227,3533.9,3533.8,1.75782]
[1754289812625,1.208,3534.5,3534.4,1.75772]
[1754289812832,1.37776005,3534.5,3534.4,3.46892]
[1754289813125,1.99246005,3534.5,3534.4,3.46892]
[1754289813329,3.23304789,3534.5,3534.4,2.9031]
[1754289813631,3.79234789,3534.5,3534.4,2.9031]
[1754289814130,3.62258784,3534.5,3534.4,0.4301]
[1754289814634,3.62258784,3534.5,3534.4,1.8023]
[1754289814827,3.62258784,3534.5,3534.4,2.4533]
[1754289815028,2.8203,3534.5,3534.4,2.4533]
[1754289815433,3.62382221,3534.5,3534.4,2.9031]
[1754289815829,4.18963221,3534.5,3534.4,2.9031]
[1754289816029,3.62382221,3534.5,3534.4,2.9031]
[1754289818533,2.8203,3534.2,3534.1,2.9031]
[1754289818732,2.8203,3534.1,3534.0,0.56587]
[1754289819029,2.8203,3534.1,3534.0,2.9031]
[1754289819234,2.8203,3534.0,3533.8,3.77371]
[1754289819435,1.1886,3534.0,3533.9,1.4722]
[1754289819635,1.1886,3534.0,3533.9,1.8023]
[1754289819937,2.8203,3534.0,3533.9,1.8023]
[1754289820738,2.8203,3534.0,3533.7,0.56592]
[1754289820934,0.7503,3533.7,3533.6,20.142]
[1754289821130,0.4383,3533.4,3533.1,19.484]
[1754289821332,1.7464,3533.4,3533.3,2.2521]
[1754289821533,1.7464,3533.4,3533.3,2.9031]
[1754289821837,2.8188,3533.1,3533.0,3.46915]
[1754289822840,2.8188,3533.1,3533.0,1.8023]
[1754289823233,2.8188,3533.1,3533.0,2.4533]
[1754289823434,2.8188,3533.1,3533.0,2.9031]
[1754289823934,2.8188,3533.1,3533.0,0.4301]
[1754289825332,2.8188,3533.1,3533.0,1.4841]
[1754289825738,3.38483,3533.1,3532.7,1.1008]
[1754289825927,1.141,3532.9,3532.8,2.396]
[1754289826132,2.7938,3532.9,3532.8,2.396]
[1754289826332,1.141,3532.7,3532.6,2.396]
[1754289826532,2.7938,3532.7,3532.6,2.396]
[1754289826736,3.2078,3533.3,3532.6,2.8882]
[1754289826930,2.7938,3532.8,3532.7,2.8882]
[1754289827737,2.7938,3532.8,3532.7,0.4306]
[1754289828437,2.7938,3532.8,3532.7,1.0772]
[1754289828638,2.7938,3532.8,3532.7,1.4846]
[1754289829132,2.7938,3532.8,3532.7,2.8882]
[1754289829645,1.0981,3532.7,3532.5,3.77392]
[1754289829833,2.2391,3532.6,3532.5,6.66212]
[1754289830138,1.6337,3532.6,3532.5,6.66212]
[1754289830336,1.8244,3532.9,3532.8,2.8882]
[1754289830739,2.2391,3532.9,3532.8,2.8882]
[1754289831145,2.7938,3532.9,3532.8,2.8882]
[1754289834246,3.2078,3533.3,3533.2,2.8882]
[1754289834446,4.00739421,3533.3,3533.2,2.8882]
[1754289834847,0.79959421,3533.3,3533.2,2.8882]
[1754289835143,0.79959421,3533.7,3533.6,1.27705]
[1754289835349,0.79959421,3533.7,3533.6,3.45415]
[1754289836150,3.2078,3533.8,3533.6,3.45415]
[1754289836344,3.6175,3533.8,3533.7,2.8882]
[1754289836649,4.10401828,3533.8,3533.7,2.8882]
[1754289836850,6.17151828,3533.8,3533.7,2.8882]
[1754289837043,6.17151828,3533.8,3533.7,2.396]
[1754289837446,6.17151828,3533.8,3533.7,2.8882]
[1754289838447,3.37771828,3533.8,3533.7,3.45413]
[1754289838854,3.78741828,3533.8,3533.7,3.45413]
[1754289839245,3.6175,3533.8,3533.7,3.45413]
[1754289840453,0.4097,3533.8,3533.7,3.45413]
[1754289840647,3.9341,3534.2,3534.1,0.4074]
[1754289840855,4.17815364,3534.2,3534.1,2.396]
[1754289841150,3.2078,3534.2,3534.1,2.8882]
[1754289843448,3.9341,3534.7,3534.6,3.45399]
[1754289843851,3.2078,3534.7,3534.6,3.45399]
[1754289845253,3.9341,3534.7,3534.6,3.45399]
[1754289845557,4.4268,3534.7,3534.6,3.45399]
[1754289845859,5.0322,3534.7,3534.6,3.45399]
[1754289846354,6.01267,3534.7,3534.6,2.8882]
[1754289846558,3.9341,3534.7,3534.5,0.5658]
[1754289846859,6.0016,3534.7,3534.6,2.8882]
[1754289847059,3.2078,3534.7,3534.6,2.8882]
[1754289848460,1.8244,3535.0,3534.9,2.8882]
[1754289848962,2.2391,3535.0,3534.9,2.8882]
[1754289849161,2.7938,3535.0,3534.9,3.45394]
[1754289849758,3.35953,3535.0,3534.9,2.8882]
[1754289849958,3.35953,3535.0,3534.9,1.7883]
[1754289850263,0.56572,3535.1,3534.8,0.56575]
[1754289850463,2.7938,3534.9,3534.8,2.35405]
[1754289850661,1.6528,3534.8,3534.7,2.25066]
[1754289850857,2.7938,3534.8,3534.7,3.45396]
[1754289851959,2.7938,3534.7,3534.6,2.8882]
[1754289853163,1.141,3534.6,3534.4,3.77361]
[1754289853358,2.7938,3534.5,3534.4,1.21241]
[1754289854460,2.7938,3534.5,3534.4,3.46621]
[1754289856159,1.6574,3534.8,3534.6,0.6474]
[1754289856365,2.7697,3534.8,3534.7,2.01116]
[1754289856561,2.7697,3534.8,3534.7,2.96776]
[1754289856864,2.7697,3534.8,3534.7,3.43246]
[1754289857059,2.2378,3534.8,3534.7,3.43246]
[1754289857366,0.716,3534.8,3534.7,3.43246]
[1754289858657,2.8035,3535.2,3535.1,2.2649]
[1754289858859,2.8035,3535.2,3535.1,2.8667]
[1754289858860,3.3354,3535.2,3535.1,2.8667]
[1754289859656,3.3354,3535.2,3535.1,2.402]
[1754289859859,3.3354,3535.2,3535.1,1.7546]
[1754289860959,2.7697,3535.2,3535.1,1.7546]
[1754289861161,2.7697,3535.2,3535.1,2.8667]
[1754289861969,2.7697,3534.9,3534.8,2.96775]
[1754289862168,2.7697,3534.9,3534.8,2.402]
[1754289863568,2.7697,3534.9,3534.8,2.8667]
[1754289864070,1.1123,3534.7,3534.6,1.29978]
[1754289864268,2.7697,3534.7,3534.6,3.43248]
[1754289865068,2.7697,3534.7,3534.6,1.7546]
[1754289865372,2.7697,3534.7,3534.6,1.4454]
[1754289866066,1.1123,3534.5,3534.4,1.8002]
[1754289866268,2.7697,3534.5,3534.4,2.402]
[1754289866666,2.7697,3534.5,3534.4,2.8667]
[1754289866870,2.2378,3534.5,3534.4,2.8667]
[1754289867570,0.716,3534.5,3534.4,2.8667]
[1754289867972,1.1904,3534.5,3534.4,2.8667]
[1754289868173,1.8415,3534.5,3534.4,2.8667]
[1754289868471,2.7697,3534.5,3534.4,2.8667]
[1754289868675,2.7697,3534.4,3534.3,0.6018]
[1754289869174,2.7697,3534.4,3534.3,1.4454]
[1754289869371,3.57653707,3534.4,3534.3,2.8667]
[1754289869766,3.57653707,3534.4,3534.3,1.7546]
[1754289870278,3.57653707,3534.4,3534.3,2.8667]
[1754289872674,2.378,3534.1,3534.0,2.402]
[1754289872978,1.6442,3534.0,3533.7,0.56592]
[1754289873171,2.2953,3533.7,3533.6,2.32054]
[1754289873367,2.7697,3533.7,3533.6,2.96794]
[1754289873569,2.7697,3533.7,3533.6,3.43264]
[1754289873972,2.2378,3533.7,3533.6,3.43264]
[1754289874578,1.8415,3533.7,3533.6,3.43264]
[1754289875480,2.2378,3533.7,3533.6,3.43264]
[1754289876182,2.7697,3533.7,3533.6,3.43264]
[1754289876481,3.33563,3533.7,3533.6,2.8667]
[1754289876782,3.33563,3533.7,3533.6,2.402]
[1754289877078,2.7697,3533.7,3533.6,2.402]
[1754289878179,0.56595,3533.6,3533.4,0.56597]
[1754289878482,2.7697,3533.5,3533.4,3.43267]
[1754289878877,2.2378,3533.5,3533.4,3.43267]
[1754289879780,3.2078,3534.0,3533.9,2.8667]
[1754289879974,4.18407343,3534.0,3533.9,2.8667]
[1754289880177,1.28187,3534.2,3534.1,1.1528]
[1754289880481,2.01179155,3534.2,3534.1,2.8667]
[1754289880787,3.21400593,3534.2,3534.1,2.8667]
[1754289881084,0.97620593,3534.2,3534.1,2.8667]
[1754289881382,0.17029155,3534.2,3534.1,2.8667]
[1754289881678,0.97620593,3534.2,3534.1,2.8667]
[1754289881874,0.17029155,3534.2,3534.1,2.8667]
[1754289882075,0.97620593,3534.2,3534.1,2.8667]
[1754289882279,0.3917,3534.2,3534.1,2.8667]
[1754289882481,1.19761438,3534.2,3534.1,2.8667]
[1754289882684,0.3917,3534.2,3534.1,2.8667]
[1754289882981,3.04371438,3534.2,3534.1,2.8667]
[1754289883781,0.80591438,3534.2,3534.1,2.8667]
[1754289883977,1.6574,3534.5,3534.3,2.7988]
[1754289883978,1.98341438,3534.4,3534.3,2.7988]
[1754289884180,2.59621438,3534.4,3534.3,2.7988]
[1754289884880,1.7903,3534.4,3534.3,2.7988]
[1754289885283,3.2078,3534.6,3534.4,0.56582]
[1754289885481,4.3853,3534.6,3534.5,2.7988]
[1754289885782,6.19893565,3534.6,3534.5,2.7988]
[1754289885979,6.70843565,3534.6,3534.5,2.7988]
[1754289886380,4.01373565,3534.6,3534.5,2.7988]
[1754289886686,0.80593565,3534.6,3534.5,2.7988]
[1754289886984,0.80593565,3534.8,3534.7,2.7988]
[1754289887882,1.98343565,3534.9,3534.8,3.36456]
[1754289888275,2.59623565,3534.9,3534.8,3.36456]
[1754289888475,2.99113565,3534.9,3534.8,0.56576]
[1754289888671,1.1023,3534.5,3534.4,0.56581]
[1754289888875,2.6947,3534.5,3534.4,2.00451]
[1754289889483,2.6947,3534.5,3534.4,2.89391]
[1754289889686,2.6947,3534.5,3534.4,3.36461]
[1754289890177,1.1023,3534.2,3534.1,0.6261]
[1754289890383,2.6947,3534.2,3534.1,2.7988]
[1754289892386,2.6896,3534.2,3534.1,1.746]
[1754289892987,2.6896,3534.2,3534.1,2.3281]
[1754289893388,2.6896,3534.2,3534.1,2.7988]
[1754289894188,3.49540628,3534.2,3534.1,2.7988]
[1754289895491,0.80580628,3534.2,3534.1,2.7988]